{"text_format":"3","workbook":"xlsx","n_sheets":1,"sheets":["Blodtryck och glukos"],"not_rendered":{"defined_names":9},"read":"whole","date_system":"1900"}

{"sheet":"Blodtryck och glukos","index":0,"n_rows":13,"n_cols":11,"rows_kept":13,"merged":[[0,1,4,3],[0,4,0,9],[1,4,1,6],[1,7,1,9]]}
[null,"Spårning av blodtryck och glukos",null,null,"Anpassa skalvärdena i cellerna E2 till J5 nedan."]
[{"$nulls":4},"BLODTRYCK",null,null,"GLUKOSSKALA"]
[{"$nulls":4},120,"SYSTOLISKT",140,70,100,150]
[{"$nulls":4},80,"DIASTOLISKT",90,"LÅGT","NORMALT","HÖGT"]
[{"$nulls":4},"MÅLTRYCK",null,"RING LÄKARE"]
[null,"Datum","Tid","Händelse","Systoliskt","Diastoliskt","Hjärtfrekvens","Glukos","Nivå","Status","Anteckningar"]
[null,{"$f":"TODAY()","v":"2022-08-04"},"06:00:00","Uppvaknande",129,79,72,55,{"$f":"BloodPressureAndGlucose[[#This Row],[Glukos]]","v":55},{"$f":"IFERROR(IF(BloodPressureAndGlucose[[#This Row],[Nivå]]=0,\"\",IF(BloodPressureAndGlucose[[#This Row],[Nivå]]<=GLågt,\"Lågt\",IF(AND(BloodPressureAndGlucose[[#This Row],[Nivå]]>GLågt,BloodPressureAndGlucose[[#This Row],[Nivå]]<GHögt),\"Normalt\",\"Högt\"))), \"\")","v":"Lågt"}]
[null,{"$f":"TODAY()","v":"2022-08-04"},"07:00:00","Före måltid",120,80,74,70,{"$f":"BloodPressureAndGlucose[[#This Row],[Glukos]]","v":70},{"$f":"IFERROR(IF(BloodPressureAndGlucose[[#This Row],[Nivå]]=0,\"\",IF(BloodPressureAndGlucose[[#This Row],[Nivå]]<=GLågt,\"Lågt\",IF(AND(BloodPressureAndGlucose[[#This Row],[Nivå]]>GLågt,BloodPressureAndGlucose[[#This Row],[Nivå]]<GHögt),\"Normalt\",\"Högt\"))), \"\")","v":"Lågt"}]
[null,"2022-08-04","09:00:00","Efter måltid",133,80,75,75,{"$f":"BloodPressureAndGlucose[[#This Row],[Glukos]]","v":75},{"$f":"IFERROR(IF(BloodPressureAndGlucose[[#This Row],[Nivå]]=0,\"\",IF(BloodPressureAndGlucose[[#This Row],[Nivå]]<=GLågt,\"Lågt\",IF(AND(BloodPressureAndGlucose[[#This Row],[Nivå]]>GLågt,BloodPressureAndGlucose[[#This Row],[Nivå]]<GHögt),\"Normalt\",\"Högt\"))), \"\")","v":"Normalt"}]
[null,"2022-08-04","10:00:00","Endast blodtryck",143,91,75,190,{"$f":"BloodPressureAndGlucose[[#This Row],[Glukos]]","v":190},{"$f":"IFERROR(IF(BloodPressureAndGlucose[[#This Row],[Nivå]]=0,\"\",IF(BloodPressureAndGlucose[[#This Row],[Nivå]]<=GLågt,\"Lågt\",IF(AND(BloodPressureAndGlucose[[#This Row],[Nivå]]>GLågt,BloodPressureAndGlucose[[#This Row],[Nivå]]<GHögt),\"Normalt\",\"Högt\"))), \"\")","v":"Högt"}]
[null,"2022-08-04","12:00:00","Före måltid",141,84,70,140,{"$f":"BloodPressureAndGlucose[[#This Row],[Glukos]]","v":140},{"$f":"IFERROR(IF(BloodPressureAndGlucose[[#This Row],[Nivå]]=0,\"\",IF(BloodPressureAndGlucose[[#This Row],[Nivå]]<=GLågt,\"Lågt\",IF(AND(BloodPressureAndGlucose[[#This Row],[Nivå]]>GLågt,BloodPressureAndGlucose[[#This Row],[Nivå]]<GHögt),\"Normalt\",\"Högt\"))), \"\")","v":"Normalt"}]
[null,{"$f":"TODAY()","v":"2022-08-04"},"15:00:00","Efter måltid",132,80,68,90,{"$f":"BloodPressureAndGlucose[[#This Row],[Glukos]]","v":90},{"$f":"IFERROR(IF(BloodPressureAndGlucose[[#This Row],[Nivå]]=0,\"\",IF(BloodPressureAndGlucose[[#This Row],[Nivå]]<=GLågt,\"Lågt\",IF(AND(BloodPressureAndGlucose[[#This Row],[Nivå]]>GLågt,BloodPressureAndGlucose[[#This Row],[Nivå]]<GHögt),\"Normalt\",\"Högt\"))), \"\")","v":"Normalt"},"Tog blodtrycksmedicin vid måltiden"]
[null,"Medelvärden",null,null,{"$f":"SUBTOTAL(101,BloodPressureAndGlucose[Systoliskt])","v":133},{"$f":"SUBTOTAL(101,BloodPressureAndGlucose[Diastoliskt])","v":{"v":82.33333333333333,"d":"82"}},{"$f":"SUBTOTAL(101,BloodPressureAndGlucose[Hjärtfrekvens])","v":{"v":72.33333333333333,"d":"72"}},{"$f":"SUBTOTAL(101,BloodPressureAndGlucose[Glukos])","v":{"v":103.33333333333333,"d":"103"}}]